bitfinex-derivatives/quotes_BTCF0:USTF0_20241217
["timestamp","ask_amount","ask_price","bid_price","bid_amount"]
[1734449533719,0.047208,105910.0,105880.0,1.0575]
[1734449533923,0.047208,105910.0,105900.0,0.69568687]
[1734449534223,0.04729274,105920.0,105900.0,1.0216]
[1734449534428,0.04729274,105920.0,105910.0,0.3608]
[1734449534629,8.874e-05,105920.0,105910.0,0.6608]
[1734449534933,0.26382563,105920.0,105910.0,1.05001156]
[1734449535120,0.047207,105910.0,105900.0,0.43707021]
[1734449535327,0.047207,105910.0,105900.0,1.12906552]
[1734449535633,0.26374089,105910.0,105890.0,1.14829977]
[1734449535833,0.047212,105900.0,105890.0,1.12909977]
[1734449536124,0.047212,105900.0,105890.0,1.06348028]
[1734449536325,0.26374589,105900.0,105890.0,0.61696445]
[1734449536828,0.26374589,105900.0,105890.0,0.68293454]
[1734449537031,0.26374589,105900.0,105890.0,0.62855235]
[1734449537330,0.006,105910.0,105890.0,1.34373454]
[1734449537524,0.006,105910.0,105900.0,1.2705403]
[1734449538031,8.874e-05,105920.0,105900.0,1.57268981]
[1734449538231,8.874e-05,105920.0,105910.0,1.27268981]
[1734449538628,0.21653389,105950.0,105910.0,1.83069654]
[1734449538935,0.047198,105930.0,105920.0,1.27289251]
[1734449539135,0.047195,105940.0,105920.0,0.7675]
[1734449539439,0.047195,105940.0,105930.0,0.81034579]
[1734449539733,0.04719,105950.0,105930.0,1.16625895]
[1734449539931,0.04719,105950.0,105940.0,0.3608]
[1734449540130,0.047186,105960.0,105940.0,0.81020352]
[1734449540332,0.047186,105960.0,105950.0,0.81010602]
[1734449540724,0.094866,105970.0,105950.0,1.11019264]
[1734449540927,0.26421589,105970.0,105960.0,0.39283343]
[1734449541233,0.047185,105960.0,105950.0,8.662e-05]
[1734449541536,0.62451889,105960.0,105950.0,0.39273574]
[1734449541737,0.62451889,105960.0,105950.0,8.662e-05]
[1734449541941,0.26371889,105960.0,105950.0,8.662e-05]
[1734449543542,0.051185,105960.0,105950.0,0.44839638]
[1734449543728,0.051185,105960.0,105950.0,0.80919638]
[1734449543924,0.004,105960.0,105950.0,1.10919638]
[1734449544129,0.004,105960.0,105950.0,0.66088662]
[1734449544327,0.002,105960.0,105950.0,1.10905458]
[1734449544526,0.002,105960.0,105950.0,1.16627165]
[1734449544737,0.008,105960.0,105950.0,1.16627165]
[1734449544930,0.27171889,105960.0,105950.0,0.44796089]
[1734449545333,0.27171889,105960.0,105950.0,0.39194033]
[1734449546536,0.055185,105960.0,105950.0,8.662e-05]
[1734449546738,0.055185,105960.0,105950.0,0.75274033]
[1734449546935,0.053185,105960.0,105950.0,1.05274033]
[1734449547139,0.055185,105960.0,105950.0,1.10876089]
[1734449547344,0.93251889,105960.0,105950.0,0.28748188]
[1734449547532,0.93251889,105960.0,105950.0,0.32457682]
[1734449547838,0.92651889,105960.0,105950.0,0.32457682]
[1734449548040,0.92951889,105960.0,105950.0,0.27974259]
[1734449548241,0.63151889,105960.0,105950.0,0.27974259]
[1734449548439,0.101374,105960.0,105940.0,0.43707021]
[1734449548645,0.047194,105940.0,105930.0,0.88494448]
[1734449548946,0.047198,105930.0,105920.0,1.29164448]
[1734449549132,0.62453189,105930.0,105920.0,0.00068]
[1734449549333,0.047203,105920.0,105900.0,0.54863427]
[1734449549542,0.047203,105920.0,105900.0,0.10076]
[1734449549543,0.047207,105910.0,105900.0,0.10076]
[1734449549749,0.047207,105910.0,105900.0,0.83707021]
[1734449550129,0.047207,105910.0,105900.0,0.47627021]
[1734449550337,0.62454089,105910.0,105900.0,0.1]
[1734449550738,0.62554089,105910.0,105900.0,0.1]
[1734449551853,0.62954089,105910.0,105900.0,0.1]
[1734449552233,0.413007,105910.0,105900.0,0.1]
[1734449552444,0.005,105910.0,105900.0,1.20867427]
[1734449552638,0.62954089,105910.0,105900.0,0.1]
[1734449552832,0.047212,105900.0,105890.0,0.44783584]
[1734449553149,0.047212,105900.0,105870.0,0.44793009]
[1734449553150,0.047221,105880.0,105870.0,0.44793009]
[1734449553346,0.57733389,105880.0,105860.0,1.25331512]
[1734449553639,0.047225,105870.0,105860.0,1.36948113]
[1734449553847,0.57733389,105880.0,105860.0,1.73028113]
[1734449553848,0.21653389,105880.0,105860.0,1.73028113]
[1734449554035,0.047225,105870.0,105860.0,0.73707021]
[1734449554342,0.26375889,105870.0,105860.0,0.48924879]
[1734449554546,0.26375889,105870.0,105860.0,0.52423354]
[1734449554747,0.26475889,105870.0,105860.0,0.52623354]
[1734449554944,0.26475889,105870.0,105860.0,0.53023354]
[1734449555245,0.048225,105870.0,105860.0,0.53023354]
[1734449555944,0.048225,105870.0,105860.0,0.07827021]
[1734449555945,0.052225,105870.0,105860.0,0.07827021]
[1734449556450,0.053225,105870.0,105860.0,0.88503354]
[1734449557237,0.053225,105870.0,105860.0,0.94103862]
[1734449557749,0.053225,105870.0,105860.0,0.58023862]
[1734449558340,0.63055889,105870.0,105860.0,0.44806785]
[1734449558542,0.63055889,105870.0,105860.0,0.44808345]
[1734449559254,0.047229,105860.0,105850.0,0.44808345]
[1734449559749,0.047229,105860.0,105850.0,0.93528325]
[1734449559948,0.006,105870.0,105850.0,1.21825006]
[1734449560147,0.047229,105860.0,105850.0,1.24123915]
[1734449560348,0.047229,105860.0,105850.0,1.79878697]
[1734449560653,0.26376289,105860.0,105850.0,1.49878697]
[1734449560848,0.26976289,105860.0,105850.0,1.49879147]
[1734449561150,0.26976289,105860.0,105850.0,0.94134141]
[1734449561358,0.053229,105860.0,105850.0,1.24134141]
[1734449561648,0.053229,105860.0,105850.0,0.73707021]
[1734449562054,0.053229,105860.0,105850.0,0.37627021]
[1734449562248,0.053229,105860.0,105850.0,0.73707021]
[1734449562642,0.053229,105860.0,105850.0,0.07627021]
[1734449562848,0.26976289,105860.0,105850.0,0.07627021]
[1734449563543,0.053229,105860.0,105850.0,0.43707021]
[1734449564251,0.04736614,105860.0,105850.0,0.73707021]
[1734449565142,0.047238,105840.0,105820.0,0.36221734]
[1734449565350,0.21653389,105830.0,105820.0,0.86406815]
[1734449565552,0.047243,105830.0,105820.0,0.66271734]
[1734449565753,0.26377689,105830.0,105820.0,1.39318109]
[1734449565953,0.26377689,105830.0,105820.0,1.03718466]
[1734449566147,0.26377689,105830.0,105820.0,0.36271734]
[1734449566348,0.26327689,105830.0,105820.0,0.04272211]
[1734449566744,0.62507689,105830.0,105820.0,0.3941905]
[1734449566946,0.26427689,105830.0,105820.0,0.3941905]
[1734449567144,0.046743,105830.0,105820.0,0.66221734]
[1734449567348,0.047743,105830.0,105820.0,0.66271734]
[1734449567758,0.047743,105830.0,105820.0,0.87925123]
[1734449567951,0.047743,105830.0,105800.0,0.01764637]
[1734449568154,0.047743,105830.0,105770.0,0.20368]
[1734449568155,6.18254983,105780.0,105770.0,0.20368]
[1734449568345,5.02193664,105780.0,105770.0,1.40829538]
[1734449568553,4.96883342,105780.0,105770.0,1.40829538]
[1734449568751,4.95338661,105780.0,105770.0,1.40829538]
[1734449569058,4.87668084,105780.0,105770.0,1.62498927]
[1734449569354,4.85417085,105780.0,105770.0,1.44386478]
[1734449569557,4.85417085,105780.0,105770.0,1.87281794]
[1734449569558,4.84504805,105780.0,105770.0,1.87281794]
[1734449569758,4.82730893,105780.0,105770.0,1.25782195]
[1734449569945,4.82830893,105780.0,105770.0,1.87387972]
[1734449570165,4.82830893,105780.0,105770.0,1.89316642]
[1734449570659,4.59328899,105780.0,105770.0,1.89427093]
[1734449570962,4.59328899,105780.0,105770.0,1.89416642]
[1734449571155,4.59328899,105780.0,105770.0,2.32256642]
[1734449571459,4.59328899,105780.0,105770.0,2.65496642]
[1734449571662,4.54603899,105780.0,105770.0,2.65496642]
[1734449571856,4.54603899,105780.0,105770.0,2.70223642]
[1734449572166,4.51629149,105780.0,105770.0,2.70223642]
[1734449572650,4.28027155,105780.0,105770.0,2.70223642]
[1734449572852,4.20622292,105780.0,105770.0,2.70223642]
[1734449573056,3.86843013,105780.0,105770.0,2.85859936]
[1734449573249,3.81350176,105780.0,105770.0,2.81132936]
[1734449573449,3.81350176,105780.0,105770.0,2.80282955]
[1734449573649,3.81350176,105780.0,105770.0,2.59915955]
[1734449574058,3.76038976,105780.0,105770.0,2.65511854]
[1734449574255,3.28828119,105780.0,105770.0,2.65511854]
[1734449574455,3.22336611,105780.0,105770.0,2.66437991]
[1734449574652,3.22336611,105780.0,105770.0,3.22407067]
[1734449574848,3.22336611,105780.0,105770.0,2.59959941]
[1734449575053,2.88116064,105780.0,105770.0,2.08717865]
[1734449575348,2.83782164,105780.0,105770.0,2.08767865]
[1734449575558,1.81564691,105780.0,105770.0,2.24407865]
[1734449575862,1.78845096,105780.0,105770.0,2.24407865]
[1734449576258,1.69167096,105780.0,105770.0,2.24407865]
[1734449576460,1.60861396,105780.0,105770.0,2.24357865]
[1734449576963,1.57551986,105780.0,105770.0,2.24357865]
[1734449577150,1.33949992,105780.0,105770.0,2.24357865]
[1734449577352,1.29636605,105780.0,105770.0,2.24357865]
[1734449577752,1.27275605,105780.0,105770.0,2.24357865]
[1734449578058,1.2359325,105780.0,105770.0,2.24357865]
[1734449578462,1.18282631,105780.0,105770.0,1.89630865]
[1734449578674,1.18282631,105780.0,105770.0,3.07608129]
[1734449578960,1.18282631,105780.0,105770.0,2.75812659]
[1734449579353,1.18282631,105780.0,105770.0,2.24357865]
[1734449579553,1.18182631,105780.0,105770.0,2.24257865]
[1734449579761,1.18282631,105780.0,105770.0,2.24657865]
[1734449580459,0.24156454,105780.0,105770.0,2.43018048]
[1734449580662,0.408039,105840.0,105800.0,0.047256]
[1734449580860,0.408039,105840.0,105830.0,0.56269677]
[1734449581165,0.408039,105840.0,105830.0,0.5065373]
[1734449581166,0.62457289,105840.0,105830.0,0.5065373]
[1734449581652,0.408039,105840.0,105830.0,0.56281298]
[1734449581857,0.408039,105840.0,105830.0,1.06944419]
[1734449582158,0.54935625,105840.0,105830.0,0.5067401]
[1734449582949,0.047243,105830.0,105820.0,1.18223249]
[1734449583154,0.88196025,105830.0,105820.0,0.56326605]
[1734449583362,0.047247,105820.0,105790.0,0.01745405]
[1734449583659,0.54937425,105800.0,105770.0,1.11091517]
[1734449583967,0.3608,105790.0,105780.0,0.00011409]
[1734449584764,0.408061,105790.0,105780.0,0.00011409]
[1734449584954,0.54937825,105790.0,105780.0,0.00011409]
[1734449585355,0.408061,105790.0,105780.0,0.00011409]
[1734449585663,0.54937825,105790.0,105780.0,0.00011409]
[1734449586266,0.54937825,105790.0,105770.0,0.02661876]
[1734449586267,0.047265,105780.0,105770.0,0.02661876]
[1734449586465,0.49625464,105780.0,105770.0,0.02361876]
[1734449586653,0.49625464,105780.0,105770.0,0.02172787]
[1734449586854,0.35493739,105780.0,105770.0,0.01872787]
[1734449587454,0.40220239,105780.0,105770.0,0.00158789]
[1734449587767,0.35593739,105780.0,105770.0,0.00258789]
[1734449588171,0.35593739,105780.0,105770.0,0.00158789]
[1734449588471,0.54451964,105780.0,105760.0,0.02107817]
[1734449588653,0.3608,105770.0,105760.0,0.02107817]
[1734449589555,0.40320239,105780.0,105760.0,0.02107817]
[1734449589758,0.40320239,105780.0,105760.0,0.02207817]
[1734449589759,0.40420239,105780.0,105760.0,0.02207817]
[1734449589967,0.3608,105770.0,105760.0,0.02207817]
[1734449590172,0.3618,105770.0,105760.0,0.02307817]
[1734449590376,0.001,105770.0,105760.0,0.02307817]
[1734449590668,0.001,105780.0,105760.0,0.57146942]
[1734449590869,0.001,105780.0,105770.0,0.54938725]
[1734449590870,0.002,105780.0,105770.0,0.54938725]
[1734449591169,0.36221889,105830.0,105790.0,0.04726]
[1734449591377,0.36221889,105830.0,105800.0,0.14131725]
[1734449591668,0.36221889,105830.0,105790.0,0.9799907]
[1734449591868,0.3608,105820.0,105790.0,0.9799907]
[1734449592256,0.3608,105820.0,105810.0,0.5065712]
[1734449593074,0.85036425,105820.0,105800.0,0.5065712]
[1734449593256,0.85036425,105820.0,105790.0,0.56386071]
[1734449593257,0.047256,105800.0,105790.0,0.56386071]
[1734449593456,0.047256,105800.0,105790.0,0.001]
[1734449593457,0.54937325,105800.0,105790.0,0.001]
[1734449593667,0.54937325,105800.0,105790.0,0.45175736]
[1734449594061,0.047263,105790.0,105770.0,0.5995754]
[1734449594261,0.3608,105790.0,105770.0,0.03671469]
[1734449594460,0.3608,105780.0,105770.0,0.01906439]
[1734449594869,0.3608,105790.0,105770.0,0.16038164]
[1734449595064,0.3608,105790.0,105770.0,0.01906439]
[1734449596069,0.3608,105780.0,105770.0,0.01906439]
[1734449596962,0.3608,105780.0,105770.0,0.006]
[1734449597471,0.3618,105780.0,105770.0,0.007]
[1734449597971,0.04727,105770.0,105760.0,0.02153611]
[1734449598272,0.50211725,105770.0,105760.0,0.00378444]
[1734449598865,0.54938725,105770.0,105760.0,0.00378444]
[1734449599167,0.50311725,105770.0,105760.0,0.00378444]
[1734449599370,0.55138725,105770.0,105760.0,0.00378444]
[1734449599775,0.55038725,105770.0,105760.0,0.00378444]
[1734449599966,0.55138725,105770.0,105760.0,0.00378444]
[1734449600167,0.55338725,105770.0,105760.0,0.00378444]
[1734449600365,0.3648,105770.0,105760.0,0.00378444]
[1734449600876,0.004,105770.0,105760.0,0.00378444]
[1734449601065,0.3648,105770.0,105760.0,0.00378444]
[1734449601261,0.3608,105780.0,105760.0,0.56732056]
[1734449602166,0.003,105770.0,105760.0,0.56732056]
[1734449602673,0.810657,105800.0,105760.0,1.41670981]
[1734449602861,0.003,105780.0,105770.0,1.06565337]
[1734449603067,0.003,105780.0,105770.0,1.54425328]
[1734449603268,0.003,105780.0,105770.0,0.98071716]
[1734449603781,0.408061,105790.0,105770.0,0.7162649]
[1734449603966,0.408061,105790.0,105780.0,0.56328054]
[1734449603967,0.3608,105790.0,105780.0,0.56328054]
[1734449604279,0.3608,105790.0,105780.0,1.2883995]
[1734449604470,0.3608,105790.0,105780.0,0.65997273]
[1734449604666,0.408061,105790.0,105780.0,0.56328054]
[1734449604868,0.3608,105790.0,105780.0,0.00885406]
[1734449605067,0.3608,105790.0,105780.0,1.22324558]
[1734449605276,0.410061,105790.0,105780.0,0.57222523]
[1734449605474,0.410061,105790.0,105780.0,1.07041381]
[1734449605677,0.410061,105790.0,105780.0,0.50704264]
[1734449605972,0.003,105790.0,105780.0,1.07041381]
[1734449606176,0.003,105790.0,105780.0,0.10554625]
[1734449606374,0.002,105790.0,105780.0,0.10554625]
[1734449606574,0.003,105790.0,105780.0,0.72537927]
[1734449606776,0.003,105790.0,105780.0,0.62868708]
[1734449607176,0.3638,105790.0,105780.0,0.62868708]
[1734449607371,0.3638,105790.0,105780.0,0.00885406]
[1734449607688,0.001,105790.0,105780.0,0.71668334]
[1734449607884,0.3628,105790.0,105780.0,0.56760727]
[1734449608565,0.3628,105790.0,105780.0,0.74963177]
[1734449608566,0.55137825,105790.0,105780.0,0.74963177]
[1734449608769,0.55137825,105790.0,105780.0,0.10954625]
[1734449608974,0.85137825,105790.0,105780.0,0.10069219]
[1734449609177,0.85133825,105790.0,105780.0,0.46621698]
[1734449609776,2.35133825,105790.0,105780.0,0.36752479]
[1734449609982,0.55133825,105790.0,105780.0,0.36752479]
[1734449610168,0.55133825,105790.0,105780.0,0.98781994]
[1734449610372,0.36176,105790.0,105780.0,0.37237885]
[1734449610583,0.55133825,105790.0,105780.0,0.47207104]
[1734449610770,0.85133825,105790.0,105780.0,1.09240266]
[1734449610975,0.85133825,105790.0,105780.0,0.36652479]
[1734449611273,0.85233825,105790.0,105780.0,0.36352479]
[1734449611677,0.85233825,105790.0,105780.0,0.98411942]
[1734449611877,0.85233825,105790.0,105760.0,0.28597523]
[1734449611878,0.04727,105770.0,105760.0,0.27712117]
[1734449612072,0.66141356,105770.0,105760.0,0.28597523]
[1734449612278,0.3608,105770.0,105760.0,0.10933069]
[1734449612481,0.411062,105790.0,105760.0,0.69713888]
[1734449612680,0.047261,105790.0,105760.0,0.51475575]
[1734449612870,0.3608,105770.0,105760.0,0.20122775]
[1734449613068,0.3608,105770.0,105760.0,0.10047663]
[1734449613069,0.30885443,105770.0,105760.0,0.10047663]
[1734449613378,0.35612443,105770.0,105760.0,0.10047663]
[1734449613680,0.35612443,105770.0,105760.0,0.00578444]
[1734449614188,0.35812443,105770.0,105760.0,0.00878444]
[1734449614569,0.31085443,105770.0,105760.0,0.00878444]
[1734449614771,0.31085443,105770.0,105740.0,0.56480753]
[1734449614772,0.2826345,105760.0,105740.0,0.56480753]
[1734449614972,0.86291725,105750.0,105700.0,0.10195832]
[1734449615275,0.86291725,105750.0,105700.0,0.5117227]
[1734449615276,0.54941025,105720.0,105700.0,0.5117227]
[1734449615478,0.54941025,105720.0,105700.0,0.1509227]
[1734449615780,0.54941025,105720.0,105700.0,0.48147051]
[1734449615781,0.708093,105720.0,105700.0,0.48147051]
[1734449615972,0.84941025,105720.0,105700.0,0.10195832]
[1734449616173,0.047296,105710.0,105700.0,0.10195832]
[1734449616398,0.408096,105710.0,105700.0,0.10195832]
[1734449616880,0.54941325,105710.0,105700.0,0.10195832]
[1734449617184,0.408096,105710.0,105700.0,0.10195832]
[1734449617487,0.3608,105720.0,105700.0,0.10195832]
[1734449617787,0.408081,105750.0,105710.0,0.50211725]
[1734449617980,0.408084,105740.0,105710.0,0.7624]
[1734449618175,0.047292,105720.0,105700.0,0.46475832]
[1734449618376,0.001,105710.0,105700.0,0.46275832]
[1734449619687,0.002,105710.0,105700.0,0.46275832]
[1734449619892,0.001,105710.0,105700.0,0.46275832]
[1734449620183,0.048296,105710.0,105700.0,0.10195832]
[1734449620575,0.410096,105710.0,105700.0,0.10395832]
[1734449620976,0.049296,105710.0,105700.0,0.10395832]
[1734449621585,0.002,105710.0,105700.0,0.46475832]
[1734449622088,0.002,105710.0,105700.0,0.10395832]
[1734449622476,0.001,105710.0,105700.0,0.65337657]
[1734449622675,0.54947124,105770.0,105700.0,1.99717657]
[1734449622876,8.399e-05,105770.0,105750.0,0.3608]
[1734449623084,8.399e-05,105770.0,105760.0,0.3608]
[1734449623680,0.04735399,105770.0,105760.0,0.3608]
[1734449623979,0.92640144,105770.0,105760.0,0.56183208]
[1734449624182,0.047274,105760.0,105750.0,0.50569139]
[1734449624483,0.62632145,105760.0,105750.0,0.50569139]
[1734449624784,0.047279,105750.0,105740.0,0.44969505]
[1734449624987,0.62632645,105750.0,105740.0,0.44969505]
[1734449625186,0.92632645,105750.0,105740.0,0.44969505]
[1734449625489,0.92632645,105750.0,105730.0,0.50591542]
[1734449625490,0.047283,105740.0,105730.0,0.44972623]
[1734449625687,0.408083,105740.0,105730.0,0.44972623]
[1734449626188,0.408083,105740.0,105710.0,0.39508]
[1734449626489,0.408089,105730.0,105710.0,0.3944]
[1734449627082,0.047292,105720.0,105710.0,0.3944]
[1734449627282,0.62633945,105720.0,105710.0,0.3944]
[1734449627679,0.62633945,105720.0,105700.0,0.10195832]
[1734449627885,0.408092,105720.0,105710.0,0.009]
[1734449628197,0.408092,105720.0,105710.0,0.013]
[1734449628390,0.047292,105720.0,105710.0,0.013]
[1734449628693,0.048292,105720.0,105710.0,0.013]
[1734449629389,0.047292,105720.0,105710.0,0.004]
[1734449629585,0.26753945,105720.0,105710.0,0.012]
[1734449629785,0.049292,105720.0,105710.0,0.012]
[1734449629987,0.410092,105720.0,105710.0,0.012]
[1734449630482,0.62833945,105720.0,105710.0,0.012]
[1734449630684,0.62733945,105720.0,105710.0,0.009]
[1734449630879,0.047296,105710.0,105700.0,0.10195832]
[1734449631583,0.62934245,105720.0,105700.0,0.10195832]
[1734449631778,0.047296,105710.0,105700.0,0.10195832]
[1734449631991,0.62634345,105710.0,105700.0,0.10195832]
[1734449632293,0.92934345,105710.0,105700.0,0.10195832]
[1734449632494,0.92934345,105710.0,105680.0,0.56333363]
[1734449632495,0.047305,105690.0,105680.0,1.06911773]
[1734449632686,0.62635245,105690.0,105680.0,1.06911773]
[1734449632881,0.92635245,105690.0,105680.0,0.00118401]
[1734449633086,0.36128,105700.0,105680.0,0.00118401]
[1734449633281,0.3608,105700.0,105680.0,0.86776811]
[1734449633497,0.3608,105700.0,105690.0,0.5057841]
[1734449633790,0.26554845,105700.0,105690.0,0.5057841]
[1734449633995,0.047305,105690.0,105680.0,0.56283065]
[1734449634191,0.26555245,105690.0,105680.0,1.07136361]
[1734449634406,0.56555245,105690.0,105680.0,0.50971697]
[1734449634699,0.92735245,105690.0,105680.0,0.01018401]
[1734449635085,0.92735245,105690.0,105680.0,0.40343799]
[1734449635294,0.92735245,105690.0,105680.0,0.39743799]
[1734449635494,0.92835245,105690.0,105680.0,0.40643799]
[1734449636387,0.04731,105680.0,105670.0,0.38821718]
[1734449636587,0.62635745,105680.0,105670.0,0.38821718]
[1734449636898,0.92635745,105680.0,105670.0,0.38821718]
[1734449637086,0.70811,105680.0,105670.0,0.38821718]
[1734449637287,0.047314,105670.0,105650.0,1.27034296]
[1734449637487,0.408114,105670.0,105660.0,0.44931435]
[1734449637787,0.050313,105680.0,105660.0,0.56164664]
[1734449638094,0.411113,105680.0,105670.0,0.44926029]
[1734449638490,0.92736045,105680.0,105670.0,0.44926029]
[1734449638787,0.047314,105670.0,105660.0,0.44926029]
[1734449638989,0.62636145,105670.0,105660.0,0.44926029]
[1734449639489,0.92636145,105670.0,105660.0,0.44926029]
[1734449639689,0.047319,105660.0,105650.0,0.41201]
[1734449639996,0.047319,105660.0,105650.0,0.40401]
[1734449640597,0.047319,105660.0,105650.0,0.90987722]
[1734449640987,0.048319,105660.0,105650.0,0.91087722]
[1734449641191,0.001,105660.0,105650.0,1.27167722]
[1734449641389,0.001,105660.0,105650.0,1.32788469]
[1734449641588,0.3608,105690.0,105650.0,1.54613214]
[1734449641796,0.04731,105680.0,105670.0,0.81050685]
[1734449641992,0.04731,105680.0,105670.0,1.31642706]
[1734449642502,0.26555745,105680.0,105670.0,1.06817401]
[1734449642793,0.62635745,105680.0,105670.0,1.06817401]
[1734449643207,0.87317302,105680.0,105660.0,1.18035685]
[1734449643386,0.70811,105680.0,105670.0,1.06841168]
[1734449643699,0.047314,105670.0,105660.0,0.50633699]
[1734449644287,0.047314,105670.0,105650.0,1.54356685]
[1734449644494,0.047314,105670.0,105660.0,0.56207469]
[1734449644700,0.408114,105670.0,105660.0,0.56207469]
[1734449644994,0.408114,105670.0,105660.0,1.06866916]
[1734449645233,0.401683,105670.0,105660.0,0.45031643]
[1734449645388,0.041883,105670.0,105660.0,0.45031643]
[1734449645698,0.402683,105670.0,105650.0,0.45072643]
[1734449645902,0.047319,105660.0,105650.0,0.45072643]
[1734449646103,0.047319,105660.0,105650.0,0.86768921]
[1734449646798,0.047319,105660.0,105650.0,0.81132456]
[1734449646999,0.54988293,105660.0,105650.0,0.50688921]
[1734449647195,0.54988293,105660.0,105650.0,0.51288921]
[1734449647506,0.55088293,105660.0,105650.0,0.45751677]
[1734449647891,0.409119,105660.0,105650.0,0.45751677]
[1734449648088,0.410119,105660.0,105650.0,0.01041]
[1734449648291,0.409119,105660.0,105650.0,0.45951677]
[1734449648488,0.410119,105660.0,105650.0,0.51547921]
[1734449648904,0.047315,105670.0,105650.0,1.45887643]
[1734449649203,0.047315,105670.0,105660.0,1.4293539]
[1734449649396,0.047315,105670.0,105660.0,0.92287469]
[1734449649602,0.047315,105670.0,105660.0,1.42883816]
[1734449649992,0.18907893,105670.0,105660.0,1.42883816]
[1734449650191,0.54987893,105670.0,105660.0,1.06803816]
[1734449650400,0.54987893,105670.0,105660.0,0.50596347]
[1734449650604,0.54987893,105670.0,105660.0,0.95573971]
[1734449650914,0.54987893,105670.0,105660.0,0.4497872]
[1734449651197,0.55387893,105670.0,105660.0,0.4497872]
[1734449651607,0.047319,105660.0,105650.0,1.0737872]
[1734449651794,0.50656393,105670.0,105650.0,1.4345872]
[1734449651991,0.004,105670.0,105650.0,1.4345872]
[1734449652190,0.40818978,105690.0,105660.0,0.91916393]
[1734449652399,0.54995371,105690.0,105680.0,0.44972834]
[1734449652700,0.54995371,105690.0,105680.0,0.39349817]
[1734449652903,0.18915371,105690.0,105670.0,0.44972834]
[1734449653212,0.40818978,105690.0,105680.0,0.44972834]
[1734449653901,0.40818978,105690.0,105680.0,0.50594438]
[1734449653902,0.54995371,105690.0,105680.0,0.50594438]
[1734449654200,0.55395371,105690.0,105680.0,0.45022084]
[1734449654401,0.85395371,105690.0,105680.0,0.45022084]
[1734449654608,0.55395371,105690.0,105680.0,0.45022084]
[1734449654807,0.55095371,105690.0,105680.0,0.45022084]
[1734449655003,0.55395371,105690.0,105680.0,0.45022084]
[1734449655199,0.55395371,105690.0,105670.0,0.50594438]
[1734449655200,0.04731,105680.0,105670.0,0.50594438]
[1734449655395,0.04731,105680.0,105670.0,1.16351751]
[1734449655997,0.18907393,105680.0,105670.0,1.16351751]
[1734449656299,0.04731,105680.0,105670.0,1.21972498]
[1734449656498,0.05031,105680.0,105670.0,1.21972498]
[1734449656798,0.05131,105680.0,105670.0,1.58059932]
[1734449657410,0.50264671,105690.0,105670.0,0.96231716]
[1734449657702,0.40818778,105690.0,105680.0,1.04013243]
[1734449658114,0.40818778,105690.0,105680.0,1.21874959]
[1734449658300,0.04738778,105690.0,105680.0,1.16231836]
[1734449658706,0.18915171,105690.0,105680.0,1.16251398]
[1734449658905,0.54995171,105690.0,105680.0,1.36384641]
[1734449659107,0.04731,105680.0,105670.0,1.12884755]
[1734449659296,0.54987393,105680.0,105670.0,0.45166574]
[1734449660011,0.54987393,105680.0,105670.0,0.17987022]
[1734449660307,0.55287393,105680.0,105670.0,0.17987022]
[1734449660507,0.55287393,105680.0,105670.0,0.74436704]
[1734449660810,0.36088278,105690.0,105670.0,0.38725312]
[1734449661010,0.36088278,105690.0,105680.0,1.05033243]
[1734449661011,0.40818778,105690.0,105680.0,1.05033243]
[1734449661210,0.54995171,105690.0,105680.0,0.81685312]
[1734449661407,0.54995171,105690.0,105680.0,1.17487567]
[1734449661604,0.54995171,105690.0,105680.0,0.81685312]
[1734449662106,0.04738778,105690.0,105680.0,0.81685312]
[1734449662409,0.3608,105690.0,105680.0,1.05309183]
[1734449662605,0.3608,105690.0,105680.0,1.08334402]
[1734449662606,0.047305,105690.0,105680.0,1.08334402]
[1734449662907,0.048305,105690.0,105680.0,1.08334402]
[1734449663102,0.050305,105690.0,105680.0,0.84719539]
[1734449663304,0.050305,105690.0,105680.0,0.8169432]
[1734449663508,1.908101,105700.0,105680.0,1.1777432]
[1734449663805,0.049305,105690.0,105680.0,1.1777432]
[1734449664008,0.049305,105690.0,105680.0,0.8169432]
[1734449664605,0.048305,105690.0,105680.0,1.79995711]
[1734449664910,0.048305,105690.0,105680.0,1.43915711]
[1734449665312,0.409105,105690.0,105680.0,1.43915711]
[1734449665817,0.048305,105690.0,105680.0,0.8169432]
[1734449666004,0.048305,105690.0,105680.0,1.1777432]
[1734449666222,0.001,105690.0,105680.0,1.1777432]
[1734449666406,0.001,105690.0,105680.0,1.99995932]
[1734449666613,0.002,105690.0,105680.0,2.23610795]
[1734449666818,0.06917219,105710.0,105680.0,2.23601787]
[1734449667113,0.047301,105700.0,105690.0,9.008e-05]
[1734449667318,0.047301,105700.0,105690.0,0.62349183]
[1734449667617,0.00141996,105720.0,105700.0,0.14176393]
[1734449667809,0.26778738,105760.0,105710.0,2.126097]
[1734449668003,0.36221911,105760.0,105750.0,0.50870084]
[1734449668204,0.00141911,105760.0,105750.0,0.32163415]
[1734449668509,0.00141869,105790.0,105750.0,2.24933859]
[1734449668708,0.00141869,105790.0,105780.0,0.56430422]
[1734449668709,0.40948169,105790.0,105780.0,0.56430422]
[1734449668911,0.85124562,105790.0,105780.0,1.39425484]
[1734449669207,0.04727,105770.0,105760.0,0.23614863]
[1734449669406,0.04727,105770.0,105720.0,1.08191889]
[1734449669407,0.047284,105740.0,105720.0,1.08191889]
[1734449669615,0.408084,105740.0,105720.0,1.08191889]
[1734449669816,0.408084,105740.0,105730.0,0.4303]
[1734449670015,0.408084,105740.0,105730.0,0.43039581]
[1734449670209,0.84984793,105740.0,105720.0,0.00141889]
[1734449670412,0.84984793,105740.0,105690.0,0.37992896]
[1734449670413,0.047295,105720.0,105690.0,0.37992896]
[1734449670721,1.908095,105720.0,105690.0,0.37992896]
[1734449670917,1.908095,105720.0,105700.0,0.4303]
[1734449671618,0.047296,105710.0,105700.0,0.4303]
[1734449672322,0.3608,105720.0,105700.0,0.4303]
[1734449672514,0.408095,105720.0,105700.0,0.4303]
[1734449672813,0.047296,105710.0,105700.0,0.4303]
[1734449673217,0.001,105710.0,105700.0,1.00945408]
[1734449673419,0.36221919,105750.0,105700.0,1.35675408]
[1734449673612,0.36221919,105750.0,105740.0,0.21835408]
[1734449673812,0.36221919,105750.0,105730.0,0.3608]
[1734449673813,0.00141919,105750.0,105730.0,0.57915408]
[1734449674021,0.00141919,105750.0,105730.0,0.3608]
[1734449674225,0.00141919,105750.0,105740.0,0.3119]
[1734449674515,0.04869719,105750.0,105740.0,0.3119]
[1734449674710,0.00141919,105750.0,105740.0,0.89105408]
[1734449674910,0.408067,105780.0,105740.0,1.19105408]